{"text_format":"1","workbook":"xlsx","n_sheets":5,"sheets":["Dados","Menu","Planilha9","Base_Fonte","Fonte"],"not_rendered":{"charts":4,"images":17,"macros":1,"external_links":0,"defined_names":42,"comments":0,"pivot_tables":4},"unopened":[],"bounds":{"document_bytes":16777216,"sheet_cells":100000,"rows_first":2000,"rows_last":500,"rows_between":2000,"halvings":0,"cell_chars":16384,"cell_head_chars":4096},"cells_cut":0,"cells_raw":0,"read":"whole","date_system":"1900"}

{"sheet":"Dados","index":0,"n_rows":76,"n_cols":17,"rows_kept":76,"cut":false,"hidden":false,"merged":[]}
[]
[]
[null,null,null,null,null,null,null,null,null,null,null,"Valor Total Contrato",2140840.23]
[null,null,null,null,null,null,null,null,null,null,null,"Custo Apurado",{"$f":"SUM(Tabela18[Total Cat])","v":981897.7699999999}]
[null,null,null,null,null,null,null,null,null,null,null,"Total Materiais Planilha = 100%",1193160.99]
[]
["Item","Fornecedor","Categoria","Tipo","Data","Material","MDO","Serviços","Locação","Total Cat","Mat_Fat_Direto A","Mat_Fat_Direto B","Soma Custo Total","Contrato","Aditivos","Impostos","Antecipação de Recebiveis"]
[7,"Fornecedor A","Material","Hidráulica","Janeiro",23670.61,null,null,null,{"$f":"SUM(Tabela18[[#This Row],[Material]:[Locação]])","v":23670.61},{"$f":"SUM(Tabela18[[#This Row],[Material]:[Locação]])","v":23670.61},null,{"$f":"SUM(Tabela18[Total Cat])","v":981897.7699999999},1800000,89000,65000,600000]
[2,"Fornecedor B","Material","Mat_Civil","Janeiro",3692.82,null,null,null,{"$f":"SUM(Tabela18[[#This Row],[Material]:[Locação]])","v":3692.82},{"$f":"SUM(Tabela18[[#This Row],[Material]:[Locação]])","v":3692.82}]
[3,"fornecedor C","Material","Elétrica","Janeiro",1966.44,null,null,null,{"$f":"SUM(Tabela18[[#This Row],[Material]:[Locação]])","v":1966.44},{"$f":"SUM(Tabela18[[#This Row],[Material]:[Locação]])","v":1966.44}]
[4,"Fornecedor D","Material","Hidráulica","Janeiro",19377.36,null,null,null,{"$f":"SUM(Tabela18[[#This Row],[Material]:[Locação]])","v":19377.36},{"$f":"SUM(Tabela18[[#This Row],[Material]:[Locação]])","v":19377.36}]
[5,"Fornecedor F","Material","Ferragens","Janeiro",7078.2,null,null,null,{"$f":"SUM(Tabela18[[#This Row],[Material]:[Locação]])","v":7078.2},{"$f":"SUM(Tabela18[[#This Row],[Material]:[Locação]])","v":7078.2}]
[6,"Fornecedor G","Material","Hidráulica","Janeiro",3864,null,null,null,{"$f":"SUM(Tabela18[[#This Row],[Material]:[Locação]])","v":3864},{"$f":"SUM(Tabela18[[#This Row],[Material]:[Locação]])","v":3864}]
[7,"Fornecedor H","Material","Hidráulica","Fevereiro",6626.07,null,null,null,{"$f":"SUM(Tabela18[[#This Row],[Material]:[Locação]])","v":6626.07},{"$f":"SUM(Tabela18[[#This Row],[Material]:[Locação]])","v":6626.07}]
[8,"Fornecedor I","Material","Diversos","Janeiro",260,null,null,null,{"$f":"SUM(Tabela18[[#This Row],[Material]:[Locação]])","v":260},{"$f":"SUM(Tabela18[[#This Row],[Material]:[Locação]])","v":260}]
[9,"Fornecedor j","MDO","Constr_Civil","Fevereiro",null,2500,null,null,{"$f":"SUM(Tabela18[[#This Row],[Material]:[Locação]])","v":2500},{"$f":"SUM(Tabela18[[#This Row],[Material]:[Locação]])","v":2500}]
[10,"Fornecedor A","Material","Ferragens","Fevereiro",8198,null,null,null,{"$f":"SUM(Tabela18[[#This Row],[Material]:[Locação]])","v":8198},{"$f":"SUM(Tabela18[[#This Row],[Material]:[Locação]])","v":8198}]
[11,"Fornecedor B","Material","Hidráulica","Fevereiro",1510.41,null,null,null,{"$f":"SUM(Tabela18[[#This Row],[Material]:[Locação]])","v":1510.41},{"$f":"SUM(Tabela18[[#This Row],[Material]:[Locação]])","v":1510.41}]
[12,"fornecedor C","Material","Mat_Civil","Janeiro",199.47,null,null,null,{"$f":"SUM(Tabela18[[#This Row],[Material]:[Locação]])","v":199.47},{"$f":"SUM(Tabela18[[#This Row],[Material]:[Locação]])","v":199.47}]
[13,"Fornecedor D","Material","Mat_Civil","Janeiro",803.8,null,null,null,{"$f":"SUM(Tabela18[[#This Row],[Material]:[Locação]])","v":803.8},{"$f":"SUM(Tabela18[[#This Row],[Material]:[Locação]])","v":803.8}]
[14,"Fornecedor F","Material","Mat_Civil","Fevereiro",319.60000000000002,null,null,null,{"$f":"SUM(Tabela18[[#This Row],[Material]:[Locação]])","v":319.60000000000002},{"$f":"SUM(Tabela18[[#This Row],[Material]:[Locação]])","v":319.60000000000002}]
[15,"Fornecedor G","Material","Mat_Civil","Fevereiro",368.33,null,null,null,{"$f":"SUM(Tabela18[[#This Row],[Material]:[Locação]])","v":368.33},{"$f":"SUM(Tabela18[[#This Row],[Material]:[Locação]])","v":368.33}]
[15,"Fornecedor H","Material","Hidráulica","Fevereiro",500,null,null,null,{"$f":"SUM(Tabela18[[#This Row],[Material]:[Locação]])","v":500},{"$f":"SUM(Tabela18[[#This Row],[Material]:[Locação]])","v":500}]
[16,"Fornecedor I","Material","Mat_Civil","Fevereiro",10039.08,null,null,null,{"$f":"SUM(Tabela18[[#This Row],[Material]:[Locação]])","v":10039.08},{"$f":"SUM(Tabela18[[#This Row],[Material]:[Locação]])","v":10039.08}]
[17,"Fornecedor j","MDO","Constr_Civil","Fevereiro",null,3800,null,null,{"$f":"SUM(Tabela18[[#This Row],[Material]:[Locação]])","v":3800},{"$f":"SUM(Tabela18[[#This Row],[Material]:[Locação]])","v":3800}]
[18,"Fornecedor A","Serviços","Frete","Fevereiro",null,null,300,null,{"$f":"SUM(Tabela18[[#This Row],[Material]:[Locação]])","v":300},{"$f":"SUM(Tabela18[[#This Row],[Material]:[Locação]])","v":300}]
[19,"Fornecedor B","Material","Pintura","Fevereiro",1274,null,null,null,{"$f":"SUM(Tabela18[[#This Row],[Material]:[Locação]])","v":1274},{"$f":"SUM(Tabela18[[#This Row],[Material]:[Locação]])","v":1274}]
[20,"fornecedor C","Locação","Plataforma","Fevereiro",null,null,10001.68,null,{"$f":"SUM(Tabela18[[#This Row],[Material]:[Locação]])","v":10001.68},{"$f":"SUM(Tabela18[[#This Row],[Material]:[Locação]])","v":10001.68}]
[21,"Fornecedor D","Material","Ferragens","Fevereiro",1700,null,null,null,{"$f":"SUM(Tabela18[[#This Row],[Material]:[Locação]])","v":1700},{"$f":"SUM(Tabela18[[#This Row],[Material]:[Serviços]])","v":1700}]
[22,"Fornecedor F","Material","Diversos","Fevereiro",419.6,null,null,null,{"$f":"SUM(Tabela18[[#This Row],[Material]:[Locação]])","v":419.6},{"$f":"SUM(Tabela18[[#This Row],[Material]:[Serviços]])","v":419.6}]
[23,"Fornecedor G","Material","Pintura","Março",655,null,null,null,{"$f":"SUM(Tabela18[[#This Row],[Material]:[Locação]])","v":655},{"$f":"SUM(Tabela18[[#This Row],[Material]:[Serviços]])","v":655}]
[24,"Fornecedor H","Material","Ferragens","Março",6165.23,null,null,null,{"$f":"SUM(Tabela18[[#This Row],[Material]:[Locação]])","v":6165.23},{"$f":"SUM(Tabela18[[#This Row],[Material]:[Serviços]])","v":6165.23}]
[25,"Fornecedor I","Serviços","Frete","Março",null,null,96,null,{"$f":"SUM(Tabela18[[#This Row],[Material]:[Locação]])","v":96},{"$f":"SUM(Tabela18[[#This Row],[Material]:[Serviços]])","v":96}]
[26,"Fornecedor j","Material","Pintura","Março",1123.4000000000001,null,null,null,{"$f":"SUM(Tabela18[[#This Row],[Material]:[Locação]])","v":1123.4000000000001},{"$f":"SUM(Tabela18[[#This Row],[Material]:[Serviços]])","v":1123.4000000000001}]
[27,"Fornecedor A","Material","Elétrica","Março",8879.9599999999991,null,null,null,{"$f":"SUM(Tabela18[[#This Row],[Material]:[Locação]])","v":8879.9599999999991},{"$f":"SUM(Tabela18[[#This Row],[Material]:[Serviços]])","v":8879.9599999999991}]
[28,"Fornecedor B","Serviços","Sondagem","Março",null,null,1840,null,{"$f":"SUM(Tabela18[[#This Row],[Material]:[Locação]])","v":1840},{"$f":"SUM(Tabela18[[#This Row],[Material]:[Serviços]])","v":1840}]
[29,"fornecedor C","Material","Ferragens","Fevereiro",3500,null,null,null,{"$f":"SUM(Tabela18[[#This Row],[Material]:[Locação]])","v":3500},{"$f":"SUM(Tabela18[[#This Row],[Material]:[Serviços]])","v":3500}]
[30,"Fornecedor D","Material","Ferragens","Março",239.8,null,null,null,{"$f":"SUM(Tabela18[[#This Row],[Material]:[Locação]])","v":239.8},{"$f":"SUM(Tabela18[[#This Row],[Material]:[Serviços]])","v":239.8}]
[31,"Fornecedor F","Serviços","Frete","Março",null,null,1145,null,{"$f":"SUM(Tabela18[[#This Row],[Material]:[Locação]])","v":1145},{"$f":"SUM(Tabela18[[#This Row],[Material]:[Serviços]])","v":1145}]
[32,"Fornecedor G","Material","Diversos","Março",1041.49,null,null,null,{"$f":"SUM(Tabela18[[#This Row],[Material]:[Locação]])","v":1041.49},{"$f":"SUM(Tabela18[[#This Row],[Material]:[Serviços]])","v":1041.49}]
[33,"Fornecedor H","Serviços","Frete","Março",null,null,1150,null,{"$f":"SUM(Tabela18[[#This Row],[Material]:[Locação]])","v":1150},{"$f":"SUM(Tabela18[[#This Row],[Material]:[Serviços]])","v":1150}]
[34,"Fornecedor I","Serviços","Frete","Março",null,null,144,null,{"$f":"SUM(Tabela18[[#This Row],[Material]:[Locação]])","v":144},{"$f":"SUM(Tabela18[[#This Row],[Material]:[Serviços]])","v":144}]
[35,"Fornecedor j","Material","Ferragens","Março",1777.48,null,null,null,{"$f":"SUM(Tabela18[[#This Row],[Material]:[Locação]])","v":1777.48},{"$f":"SUM(Tabela18[[#This Row],[Material]:[Serviços]])","v":1777.48}]
[36,"Fornecedor A","Serviços","Frete","Março",null,null,300,null,{"$f":"SUM(Tabela18[[#This Row],[Material]:[Locação]])","v":300},{"$f":"SUM(Tabela18[[#This Row],[Material]:[Serviços]])","v":300}]
[37,"Fornecedor B","MDO","Constr_Civil","Março",null,2800,null,null,{"$f":"SUM(Tabela18[[#This Row],[Material]:[Locação]])","v":2800},{"$f":"SUM(Tabela18[[#This Row],[Material]:[Serviços]])","v":2800}]
[38,"fornecedor C","Material","Ferramental","Março",385,null,null,null,{"$f":"SUM(Tabela18[[#This Row],[Material]:[Locação]])","v":385},{"$f":"SUM(Tabela18[[#This Row],[Material]:[Serviços]])","v":385}]
[39,"Fornecedor D","Material","Elétrica","Março",297,null,null,null,{"$f":"SUM(Tabela18[[#This Row],[Material]:[Locação]])","v":297},{"$f":"SUM(Tabela18[[#This Row],[Material]:[Serviços]])","v":297}]
[40,"Fornecedor F","Locação","Andaime","Março",null,null,311.60000000000002,null,{"$f":"SUM(Tabela18[[#This Row],[Material]:[Locação]])","v":311.60000000000002},{"$f":"SUM(Tabela18[[#This Row],[Material]:[Serviços]])","v":311.60000000000002}]
[41,"Fornecedor G","Serviços","Frete","Março",null,null,90,null,{"$f":"SUM(Tabela18[[#This Row],[Material]:[Locação]])","v":90},{"$f":"SUM(Tabela18[[#This Row],[Material]:[Serviços]])","v":90}]
[42,"Fornecedor H","Locação","Escora","Março",null,null,240,null,{"$f":"SUM(Tabela18[[#This Row],[Material]:[Locação]])","v":240},{"$f":"SUM(Tabela18[[#This Row],[Material]:[Serviços]])","v":240}]
[43,"Fornecedor I","Material","Diversos","Março",142,null,null,null,{"$f":"SUM(Tabela18[[#This Row],[Material]:[Locação]])","v":142},{"$f":"SUM(Tabela18[[#This Row],[Material]:[Serviços]])","v":142}]
[44,"Fornecedor j","Material","Ferragens","Fevereiro",2021.8,null,null,null,{"$f":"SUM(Tabela18[[#This Row],[Material]:[Locação]])","v":2021.8},{"$f":"SUM(Tabela18[[#This Row],[Material]:[Serviços]])","v":2021.8}]
[45,"Fornecedor A","Material","Reservatório","Fevereiro",178000,null,null,null,{"$f":"SUM(Tabela18[[#This Row],[Material]:[Locação]])","v":178000},null,178000]
[46,"Fornecedor B","Material","Bomba","Fevereiro",154500,null,null,null,{"$f":"SUM(Tabela18[[#This Row],[Material]:[Locação]])","v":154500},null,154500]
[47,"fornecedor C","Material","Hidráulica","Fevereiro",215684.34,null,null,null,{"$f":"SUM(Tabela18[[#This Row],[Material]:[Locação]])","v":215684.34},null,215684.34]
[48,"Fornecedor D","Material","Hidráulica","Abril",18126.07,null,null,null,{"$f":"SUM(Tabela18[[#This Row],[Material]:[Locação]])","v":18126.07},null,18126.07]
[49,"Fornecedor F","Material","Hidráulica","Abril",154574.71,null,null,null,{"$f":"SUM(Tabela18[[#This Row],[Material]:[Locação]])","v":154574.71},null,154574.71]
[50,"Fornecedor G","MDO","Sist_SPK","Janeiro",null,10000,null,null,{"$f":"SUM(Tabela18[[#This Row],[Material]:[Locação]])","v":10000},{"$f":"SUM(Tabela18[[#This Row],[Material]:[Locação]])","v":10000}]
[51,"Fornecedor H","MDO","Sist_SPK","Fevereiro",null,10000,null,null,{"$f":"SUM(Tabela18[[#This Row],[Material]:[Locação]])","v":10000},{"$f":"SUM(Tabela18[[#This Row],[Material]:[Locação]])","v":10000}]
[52,"Fornecedor I","MDO","Sist_SPK","Março",null,40000,null,null,{"$f":"SUM(Tabela18[[#This Row],[Material]:[Locação]])","v":40000},{"$f":"SUM(Tabela18[[#This Row],[Material]:[Locação]])","v":40000}]
[53,"Fornecedor j","MDO","Sist_SPK","Abril",null,20000,null,null,{"$f":"SUM(Tabela18[[#This Row],[Material]:[Locação]])","v":20000},{"$f":"SUM(Tabela18[[#This Row],[Material]:[Locação]])","v":20000}]
[54,"Fornecedor A","Material","Diversos","Abril",129.19999999999999,null,null,null,{"$f":"SUM(Tabela18[[#This Row],[Material]:[Locação]])","v":129.19999999999999},{"$f":"SUM(Tabela18[[#This Row],[Material]:[Locação]])","v":129.19999999999999}]
[55,"Fornecedor B","Material","Ferragens","Abril",9509.34,null,null,null,{"$f":"SUM(Tabela18[[#This Row],[Material]:[Locação]])","v":9509.34},{"$f":"SUM(Tabela18[[#This Row],[Material]:[Locação]])","v":9509.34}]
[56,"fornecedor C","Locação","Escora","Abril",null,null,600,null,{"$f":"SUM(Tabela18[[#This Row],[Material]:[Locação]])","v":600},{"$f":"SUM(Tabela18[[#This Row],[Material]:[Locação]])","v":600}]
[57,"Fornecedor D","Locação","Andaime","Abril",null,null,226.1,null,{"$f":"SUM(Tabela18[[#This Row],[Material]:[Locação]])","v":226.1},{"$f":"SUM(Tabela18[[#This Row],[Material]:[Locação]])","v":226.1}]
[58,"Fornecedor F","Serviços","Frete","Abril",null,null,725,null,{"$f":"SUM(Tabela18[[#This Row],[Material]:[Locação]])","v":725},{"$f":"SUM(Tabela18[[#This Row],[Material]:[Locação]])","v":725}]
[59,"Fornecedor G","Material","Diversos","Abril",280,null,null,null,{"$f":"SUM(Tabela18[[#This Row],[Material]:[Locação]])","v":280},{"$f":"SUM(Tabela18[[#This Row],[Material]:[Locação]])","v":280}]
[60,"Fornecedor H","Material","Elétrica","Abril",444.5,null,null,null,{"$f":"SUM(Tabela18[[#This Row],[Material]:[Locação]])","v":444.5},{"$f":"SUM(Tabela18[[#This Row],[Material]:[Locação]])","v":444.5}]
[61,"Fornecedor I","Serviços","Frete","Abril",null,null,80,null,{"$f":"SUM(Tabela18[[#This Row],[Material]:[Locação]])","v":80},{"$f":"SUM(Tabela18[[#This Row],[Material]:[Locação]])","v":80}]
[62,"Fornecedor j","Locação","Plataforma","Abril",null,null,458.43,null,{"$f":"SUM(Tabela18[[#This Row],[Material]:[Locação]])","v":458.43},{"$f":"SUM(Tabela18[[#This Row],[Material]:[Locação]])","v":458.43}]
[63,"Fornecedor A","Locação","Escora","Abril",null,null,150,null,{"$f":"SUM(Tabela18[[#This Row],[Material]:[Locação]])","v":150},{"$f":"SUM(Tabela18[[#This Row],[Material]:[Locação]])","v":150}]
[64,"Fornecedor B","Serviços","Projeto","Abril",null,null,2500,null,{"$f":"SUM(Tabela18[[#This Row],[Material]:[Locação]])","v":2500},{"$f":"SUM(Tabela18[[#This Row],[Material]:[Locação]])","v":2500}]
[65,"fornecedor C","Material","Ferragens","Maio",5638.6,null,null,null,{"$f":"SUM(Tabela18[[#This Row],[Material]:[Locação]])","v":5638.6},{"$f":"SUM(Tabela18[[#This Row],[Material]:[Locação]])","v":5638.6}]
[66,"Fornecedor D","Material","Elétrica","Maio",2123.65,null,null,null,{"$f":"SUM(Tabela18[[#This Row],[Material]:[Locação]])","v":2123.65},{"$f":"SUM(Tabela18[[#This Row],[Material]:[Locação]])","v":2123.65}]
[67,"Fornecedor F","Material","Elétrica","Maio",333.6,null,null,null,{"$f":"SUM(Tabela18[[#This Row],[Material]:[Locação]])","v":333.6},{"$f":"SUM(Tabela18[[#This Row],[Material]:[Locação]])","v":333.6}]
[76,"Fornecedor G","Material","Elétrica","Maio",15000,null,null,null,{"$f":"SUM(Tabela18[[#This Row],[Material]:[Locação]])","v":15000}]

{"sheet":"Menu","index":1,"n_rows":9,"n_cols":6,"rows_kept":9,"cut":false,"hidden":false,"merged":[]}
["Categoria","Cat_Mat","Cat_MDO","Cat_Serviços","Cat_Locação","Cat_Ferramental"]
["Material","Hidráulica","Constr_Civil","Frete","Plataforma","Elétrica"]
["MDO","Mat_Civil","Sist_SPK","Sondagem","Andaime","Mecânica"]
["Serviços","Elétrica","Forro","Projeto","Escora"]
["Locação","Ferragens","Serralheria",null,"Escada"]
["Ferramental","Pintura","Elétrico"]
[null,"Diversos"]
[null,"Bomba"]
[null,"Reservatório"]

{"sheet":"Planilha9","index":2,"n_rows":33,"n_cols":58,"rows_kept":33,"cut":false,"hidden":false,"merged":[[5,55,5,56],[5,31,5,32],[5,0,5,1],[5,4,5,7],[5,9,5,10],[5,12,5,13],[5,21,5,22]]}
[]
[]
[]
[]
[]
["Custo por Categoria",null,null,null,"Custo por Tipo de Categoria",null,null,null,null,"Custo Mensal",null,null,"Receita Líquida",null,null,null,null,null,null,null,null,"Faturamento Materiais",null,null,null,null,null,null,null,null,null,null,null,null,null,null,null,null,null,null,null,null,null,null,null,null,null,null,null,null,{"$f":"SUM(Tabela14[Valor Orçado])","v":1713192.1799999997},null,null,null,null,"Resumo Análise do Orçamento"]
[]
["Data","(Tudo)",null,null,"Categoria","Material",null,null,null,null,null,null,null,null,null,null,null,null,null,null,null,"Fat Mega","Fat Makro"]
[null,null,null,null,null,null,null,null,null,null,null,null,"Descrição","Valor","Receitas","Antecipações","Despesas","Impostos","Lucro",null,null,{"$f":"SUM(Tabela18[Mat_Fat_Direto A]/Dados!$M$5)","v":0.20618562965254175},{"$f":"SUM(Tabela18[Mat_Fat_Direto B]/Dados!$M$5)","v":0.60418093286807839},null,null,null,null,null,null,null,null,null,null,null,null,null,null,null,null,null,null,null,null,null,null,null,null,null,null,"Descrição","Valor Orçado","(%) Total Orçado","Valor Realizado",null,null,"Descrição","Valor Orçado","(%) Total Orçado"]
["Categoria","Soma de Total Cat",null,null,null,"Total Material","Total MDO","Total Serviços",null,null,"Valor Total Custo",null,"Contrato",{"$f":"Dados!N8","v":1800000},{"$f":"SUM(N10+N11)","v":1889000},{"$f":"SUM(N13)","v":600000},{"$f":"N12","v":981897.7699999999},{"$f":"N14","v":65000},{"$f":"SUM(O10-Q10-R10)/O10","v":0.44579260455267344},null,null,null,null,null,null,null,null,null,null,null,null,null,null,null,null,null,null,null,null,null,null,null,null,null,null,null,null,null,null,"Serviços Preliminares",51160,{"$f":"Tabela14[[#This Row],[Valor Orçado]]/AY6","v":2.9862382397752952E-2},0,null,null,"Serviços Preliminares",51160,{"$f":"BE10/AY6","v":2.9862382397752952E-2}]
["Locação",11987.810000000001,null,null,"Bomba",154500,null,null,null,"Janeiro",70912.7,null,"Aditivos",{"$f":"Dados!O8","v":89000},null,null,null,null,null,null,null,null,null,null,null,null,null,null,null,null,null,null,null,null,null,null,null,null,null,null,null,null,null,null,null,null,null,null,null,"Tubulaçõe e Acessórios",669009.82999999996,{"$f":"Tabela14[[#This Row],[Valor Orçado]]/AY6","v":0.39050483524854757},443933,null,null,"Tubulaçõe e Acessórios",669009.82999999996,{"$f":"BE11/AY6","v":0.39050483524854757}]
["Material",872439.95999999985,null,null,"Diversos",2272.29,null,null,null,"Fevereiro",611262.91,null,"Despesas",{"$f":"Dados!M8","v":981897.7699999999},null,null,null,null,null,null,null,null,null,null,null,null,null,null,null,null,null,null,null,null,null,null,null,null,null,null,null,null,null,null,null,null,null,null,null,"Válvulas, Registros e medições",116169.07,{"$f":"Tabela14[[#This Row],[Valor Orçado]]/AY6","v":6.7808545565506861E-2},0,null,null,"Válvulas, Registros e medições",116169.07,{"$f":"BE12/AY6","v":6.7808545565506861E-2}]
["MDO",89100,null,null,"Elétrica",29045.149999999998,null,null,null,"Março",68822.959999999992,null,"Antecipações",{"$f":"Dados!Q8","v":600000},null,null,null,null,null,null,null,null,null,null,null,null,null,null,null,null,null,null,null,null,null,null,null,null,null,null,null,null,null,null,null,null,null,null,null,"Bombas",173692.79999999999,{"$f":"Tabela14[[#This Row],[Valor Orçado]]/AY6","v":0.10138547328648209},154500,null,null,"Bombas",173692.79999999999,{"$f":"BE13/AY6","v":0.10138547328648209}]
["Serviços",8370,null,null,"Ferragens",45828.450000000004,null,null,null,"Abril",207803.35,null,"Impostos",{"$f":"Dados!P8","v":65000},null,null,null,null,null,null,null,null,null,null,null,null,null,null,null,null,null,null,null,null,null,null,null,null,null,null,null,null,null,null,null,null,null,null,null,"Bicos SPK",136031.20000000001,{"$f":"Tabela14[[#This Row],[Valor Orçado]]/AY6","v":7.940218358923401E-2},0,null,null,"Bicos SPK",136031.20000000001,{"$f":"BE14/AY6","v":7.940218358923401E-2}]
[null,null,null,null,"Hidráulica",443933.57,null,null,null,"Maio",23095.85,null,null,null,null,null,null,null,null,null,null,null,null,null,null,null,null,null,null,null,null,null,null,null,null,null,null,null,null,null,null,null,null,null,null,null,null,null,null,"Alarme e I.E",91674.880000000005,{"$f":"Tabela14[[#This Row],[Valor Orçado]]/AY6","v":5.3511147826976434E-2},11528.4,null,null,"Alarme e I.E",91674.880000000005,{"$f":"BE15/AY6","v":5.3511147826976434E-2}]
[null,null,null,null,"Mat_Civil",15423.1,null,null,null,null,null,null,null,null,null,null,null,null,null,null,null,null,null,null,null,null,null,null,null,null,null,null,null,null,null,null,null,null,null,null,null,null,null,null,null,null,null,null,null,"Reservatório",234400,{"$f":"Tabela14[[#This Row],[Valor Orçado]]/AY6","v":0.1368206105166789},178000,null,null,"Reservatório",234400,{"$f":"BE16/AY6","v":0.1368206105166789}]
[null,null,null,null,"Pintura",3052.4,null,null,null,null,null,null,null,null,null,null,null,null,null,null,null,null,null,null,null,null,null,null,null,null,null,null,null,null,null,null,null,null,null,null,null,null,null,null,null,null,null,null,null,"Adequações Diversas",180358.39999999999,{"$f":"Tabela14[[#This Row],[Valor Orçado]]/AY6","v":0.10527622184219872},62683.3,null,null,"Adequações Diversas",180358.39999999999,{"$f":"BE17/AY6","v":0.10527622184219872}]
[null,null,null,null,"Reservatório",178000,null,null,null,null,null,null,null,null,null,null,null,null,null,null,null,null,null,null,null,null,null,null,null,null,null,null,null,null,null,null,null,null,null,null,null,null,null,null,null,null,null,null,null,"Extintores",31188.799999999999,{"$f":"Tabela14[[#This Row],[Valor Orçado]]/AY6","v":1.8205079595915507E-2},0,null,null,"Extintores",31188.799999999999,{"$f":"BE18/AY6","v":1.8205079595915507E-2}]
[null,null,null,null,"Ferramental",385,null,null,null,null,null,null,null,null,null,null,null,null,null,null,null,null,null,null,null,null,null,null,null,null,null,null,null,null,null,null,null,null,null,null,null,null,null,null,null,null,null,null,null,"Omissos",29507.200000000001,{"$f":"Tabela14[[#This Row],[Valor Orçado]]/AY6","v":1.7223520130707114E-2},0,null,null,"Omissos",29507.200000000001,{"$f":"BE19/AY6","v":1.7223520130707114E-2}]
[null,null,null,null,null,null,null,null,null,null,null,null,null,null,null,null,null,null,null,null,null,null,null,null,null,null,null,null,null,null,null,null,null,null,null,null,null,null,null,null,null,null,null,null,null,null,null,null,null,"Total",{"$f":"SUM(AY10:AY19)","v":1713192.1799999997},null,{"$f":"SUM(BA10:BA19)","v":850644.70000000007},null,null,"Total",{"$f":"SUM(BE10:BE19)","v":1713192.1799999997},{"$f":"SUM(BF10:BF19)","v":1.0000000000000002}]
[]
[]
[null,null,null,null,null,null,null,null,null,null,null,null,null,null,null,null,null,null,null,null,null,null,null,null,null,null,null,null,null,null,null,null,null,null,null,null,null,null,null,null,null,null,null,null,null,null,null,null,null,"Descrição","Soma de Valor Orçado","Contagem de (%) Total Orçado"]
[null,null,null,null,null,null,null,null,null,null,null,null,null,null,null,null,null,null,null,null,null,null,null,null,null,null,null,null,null,null,null,null,null,null,null,null,null,null,null,null,null,null,null,null,null,null,null,null,null,"Adequações Diversas",180358.39999999999,1]
[null,null,null,null,null,null,null,null,null,null,null,null,null,null,null,null,null,null,null,null,null,null,null,null,null,null,null,null,null,null,null,null,null,null,null,null,null,null,null,null,null,null,null,null,null,null,null,null,null,"Alarme e I.E",91674.880000000005,1]
[null,null,null,null,null,null,null,null,null,null,null,null,null,null,null,null,null,null,null,null,null,null,null,null,null,null,null,null,null,null,null,null,null,null,null,null,null,null,null,null,null,null,null,null,null,null,null,null,null,"Bicos SPK",136031.20000000001,1]
[null,null,null,null,null,null,null,null,null,null,null,null,null,null,null,null,null,null,null,null,null,null,null,null,null,null,null,null,null,null,null,null,null,null,null,null,null,null,null,null,null,null,null,null,null,null,null,null,null,"Bombas",173692.79999999999,1]
[null,null,null,null,null,null,null,null,null,null,null,null,null,null,null,null,null,null,null,null,null,null,null,null,null,null,null,null,null,null,null,null,null,null,null,null,null,null,null,null,null,null,null,null,null,null,null,null,null,"Extintores",31188.799999999999,1]
[null,null,null,null,null,null,null,null,null,null,null,null,null,null,null,null,null,null,null,null,null,null,null,null,null,null,null,null,null,null,null,null,null,null,null,null,null,null,null,null,null,null,null,null,null,null,null,null,null,"Omissos",29507.200000000001,1]
[null,null,null,null,null,null,null,null,null,null,null,null,null,null,null,null,null,null,null,null,null,null,null,null,null,null,null,null,null,null,null,null,null,null,null,null,null,null,null,null,null,null,null,null,null,null,null,null,null,"Reservatório",234400,1]
[null,null,null,null,null,null,null,null,null,null,null,null,null,null,null,null,null,null,null,null,null,null,null,null,null,null,null,null,null,null,null,null,null,null,null,null,null,null,null,null,null,null,null,null,null,null,null,null,null,"Serviços Preliminares",51160,1]
[null,null,null,null,null,null,null,null,null,null,null,null,null,null,null,null,null,null,null,null,null,null,null,null,null,null,null,null,null,null,null,null,null,null,null,null,null,null,null,null,null,null,null,null,null,null,null,null,null,"Tubulaçõe e Acessórios",669009.82999999996,1]
[null,null,null,null,null,null,null,null,null,null,null,null,null,null,null,null,null,null,null,null,null,null,null,null,null,null,null,null,null,null,null,null,null,null,null,null,null,null,null,null,null,null,null,null,null,null,null,null,null,"Válvulas, Registros e medições",116169.07,1]

{"sheet":"Base_Fonte","index":3,"n_rows":10,"n_cols":5,"rows_kept":10,"cut":false,"hidden":false,"merged":[]}
["Categoria","Cat_Mat","Cat_MDO","Cat_Serviços","Cat_Locação"]
["Material","Hidráulica","Constr_Civil","Frete","Plataforma"]
["MDO","Mat_Civil","Sist_SPK","Sondagem","Andaime"]
["Serviços","Elétrica","Forro","Projeto","Escora"]
["Locação","Ferragens","Serralheria",null,"Escada"]
[null,"Pintura","Elétrico"]
[null,"Diversos"]
[null,"Bomba"]
[null,"Reservatório"]
[null,"Ferramental"]

{"sheet":"Fonte","index":4,"n_rows":12,"n_cols":11,"rows_kept":12,"cut":false,"hidden":false,"merged":[]}
[]
[]
[null,null,"Categoria",null,"Tipo_Mat",null,"Tipo_MDO",null,"Tipo_Serviço",null,"Tipo_Locação"]
[null,4,"Material",null,"Hidráulica",null,"Constr_Civil",null,"Frete",null,"Plataforma"]
[null,5,"MDO",null,"Mat_Civil",null,"Sist_SPK",null,"Sondagem",null,"Andaime"]
[null,6,"Serviços",null,"Elétrica",null,"Forro",null,"Projeto",null,"Escora"]
[null,7,"Locação",null,"Ferragens",null,"Serralheria",null,null,null,"Escada"]
[null,8,null,null,"Pintura",null,"Elétrico"]
[null,9,null,null,"Diversos"]
[null,10,null,null,"Bomba"]
[null,11,null,null,"Reservatório"]
[null,12,null,null,"Ferramental"]